lending/lending_fUSD_20250121
["ID","MTS","AMOUNT","RATE_DAILY","PERIOD"]
[349780202,1737423050819,-930.75911973,0.0002192,2]
[349780203,1737423050829,-930.75911973,0.0002192,2]
[349780204,1737423050838,-930.75911973,0.0002192,2]
[349780205,1737423050847,-930.75911973,0.0002192,2]
[349780206,1737423050857,-930.75911973,0.0002192,2]
[349780207,1737423050866,-930.75911973,0.0002192,2]
[349780208,1737423050876,-930.75911973,0.0002192,2]
[349780209,1737423050885,-930.75911973,0.0002192,2]
[349780210,1737423050899,-930.75911973,0.0002192,2]
[349780211,1737423050908,-930.75,0.0002192,2]
[349780212,1737423050918,-1059.90963837,0.0002192,2]
[349780213,1737423050927,-1059.90963837,0.0002192,2]
[349780214,1737423050937,-1059.90963837,0.0002192,2]
[349780215,1737423050948,-1059.90963837,0.0002192,2]
[349780216,1737423050957,-1059.90963837,0.0002192,2]
[349780217,1737423050969,-1059.90963837,0.0002192,2]
[349780218,1737423050978,-1059.90963837,0.0002192,2]
[349780219,1737423050988,-1059.90963837,0.0002192,2]
[349780220,1737423050997,-1059.90963837,0.0002192,2]
[349780221,1737423051006,-1059.90963837,0.0002192,2]
[349780222,1737423051015,-1059.90963837,0.0002192,2]
[349780223,1737423051025,-1059.90963837,0.0002192,2]
[349780224,1737423051034,-1059.90963837,0.0002192,2]
[349780225,1737423051043,-1059.90963837,0.0002192,2]
[349780226,1737423051053,-1059.90963837,0.0002192,2]
[349780227,1737423051063,-1059.90963837,0.0002192,2]
[349780228,1737423051072,-1059.90963837,0.0002192,2]
[349780229,1737423051081,-1059.90963837,0.0002192,2]
[349780230,1737423051091,-1059.90963837,0.0002192,2]
[349780231,1737423051100,-1059.9,0.0002192,2]
[349780232,1737423051110,-2473.12248953,0.0002192,2]
[349780233,1737423051119,-2473.12248953,0.0002192,2]
[349780234,1737423051129,-2473.12248953,0.0002192,2]
[349780235,1737423051139,-2473.12248953,0.0002192,2]
[349780236,1737423051149,-2473.12248953,0.0002192,2]
[349780237,1737423051160,-2473.12248953,0.0002192,2]
[349780238,1737423051169,-2473.12248953,0.0002192,2]
[349780239,1737423051178,-2473.12248953,0.0002192,2]
[349780240,1737423051188,-2473.12248953,0.0002192,2]
[349780241,1737423051200,-2473.12248953,0.0002192,2]
[349780242,1737423051210,-2473.12248953,0.0002192,2]
[349780243,1737423051219,-2473.12248953,0.0002192,2]
[349780244,1737423051228,-2473.12248953,0.0002192,2]
[349780245,1737423051238,-2473.12248953,0.0002192,2]
[349780246,1737423051248,-2473.12248953,0.0002192,2]
[349780247,1737423051257,-2473.12248953,0.0002192,2]
[349780248,1737423051267,-2473.12248953,0.0002192,2]
[349780249,1737423051276,-2473.12248953,0.0002192,2]
[349780250,1737423051286,-2473.12248953,0.0002192,2]
[349780251,1737423051296,-2473.12,0.0002192,2]
[349780252,1737423051305,-537.38973346,0.0002192,2]
[349780253,1737423051437,-537.38973346,0.0002192,2]
[349780254,1737423051448,-537.38973346,0.0002192,2]
[349780255,1737423051458,-537.38973346,0.0002192,2]
[349780256,1737423051468,-537.38973346,0.0002192,2]
[349780257,1737423051477,-537.38973346,0.0002192,2]
[349780258,1737423051487,-537.38973346,0.0002192,2]
[349780259,1737423051497,-537.38973346,0.0002192,2]
[349780260,1737423051506,-537.38973346,0.0002192,2]
[349780261,1737423051515,-537.38973346,0.0002192,2]
[349780262,1737423051525,-537.38973346,0.0002192,2]
[349780263,1737423051535,-537.38973346,0.0002192,2]
[349780264,1737423051544,-537.38973346,0.0002192,2]
[349780265,1737423051554,-537.38973346,0.0002192,2]
[349780266,1737423051563,-537.38973346,0.0002192,2]
[349780267,1737423051573,-537.38973346,0.0002192,2]
[349780268,1737423051583,-537.38973346,0.0002192,2]
[349780269,1737423051592,-537.38973346,0.0002192,2]
[349780270,1737423051602,-537.38973346,0.0002192,2]
[349780271,1737423051611,-537.38,0.0002192,2]
[349780272,1737423051621,-1253.90937807,0.0002192,2]
[349780273,1737423051630,-1253.90937807,0.0002192,2]
[349780274,1737423051640,-1253.90937807,0.0002192,2]
[349780275,1737423051649,-1253.90937807,0.0002192,2]
[349780276,1737423051659,-1253.90937807,0.0002192,2]
[349780277,1737423051668,-1253.90937807,0.0002192,2]
[349780278,1737423051678,-1253.90937807,0.0002192,2]
[349780279,1737423051687,-1253.90937807,0.0002192,2]
[349780280,1737423051698,-1253.90937807,0.0002192,2]
[349780281,1737423051706,-1253.90937807,0.0002192,2]
[349780282,1737423051716,-1253.90937807,0.0002192,2]
[349780283,1737423051725,-1253.90937807,0.0002192,2]
[349780284,1737423051735,-1253.90937807,0.0002192,2]
[349780285,1737423051744,-1253.90937807,0.0002192,2]
[349780286,1737423051754,-1253.90937807,0.0002192,2]
[349780287,1737423051763,-1253.90937807,0.0002192,2]
[349780288,1737423051772,-1253.90937807,0.0002192,2]
[349780289,1737423051782,-1253.90937807,0.0002192,2]
[349780290,1737423051791,-1253.90937807,0.0002192,2]
[349780291,1737423051800,-1253.9,0.0002192,2]
[349780292,1737423051810,-39536.68908862,0.00021934,2]
[349780293,1737423051820,-500.0,0.00021957,3]
[349780294,1737423051829,-151.92117319,0.00021957,2]
[349780295,1737423051838,-500.0,0.00021957,2]
[349780296,1737423051848,-4097.51,0.00021959,7]
[349780297,1737423051857,-4097.51,0.00021959,7]
[349780298,1737423051867,-400.0,0.0002197,2]
[349780299,1737423051876,-476.09307325,0.0002197,2]
[349780300,1737423051885,-456.58944005,0.00021972,10]
[349780301,1737423051895,-1028.4,0.00021972,2]
[349780302,1737423051906,-104973.0,0.00021973,2]
[349780303,1737423051915,-150.0,0.00021973,4]
[349780304,1737423051924,-150.0,0.00021973,4]
[349780305,1737423051933,-150.0,0.00021973,4]
[349780306,1737423051942,-150.40627047,0.00021973,4]
[349780307,1737423051954,-320072.20235726,0.0002198,2]
[349780308,1737423051963,-105231.68292286,0.0002199,14]
[349780309,1737423051972,-200.0,0.0002199,8]
[349780310,1737423051983,-500.0,0.00021996,2]
[349780311,1737423051992,-1122766.80139315,0.00021997,2]
[349780312,1737423052001,-261.7212831,0.00021998,2]
[349780313,1737423052011,-1243.9658407,0.00021998,2]
[349780314,1737423052020,-395221.72185173,0.00021998,2]
[349780315,1737423052029,-2820.0648978,0.00021998,2]
[349780316,1737423052038,-2000.0,0.00021999,2]
[349780317,1737423052047,-2000.0,0.00021999,2]
[349780318,1737423052057,-150.0,0.00021999,2]
[349780319,1737423052068,-324.87988418,0.00021999,2]
[349780320,1737423052078,-113502.72404654,0.00021999,2]
[349780321,1737423052088,-1383.52943055,0.00021999,2]
[349780322,1737423052097,-211.14710454,0.00022,2]
[349780323,1737423052112,-9368390.76115053,0.00022,2]
[349780324,1737423052122,-1688.77555853,0.00022,2]
[349780325,1737423052132,-2795900.16283403,0.00022,2]
[349780326,1737423052141,-380.68257078,0.00022,3]
[349780327,1737423052151,-2643.48,0.00022,7]
[349780328,1737423052160,-210.0,0.00022,2]
[349780329,1737423052169,-212.0,0.00022,2]
[349780330,1737423052178,-224.0,0.00022,2]
[349780331,1737423052188,-208.0,0.00022,2]
[349780332,1737423052199,-206.0,0.00022,2]
[349780333,1737423052208,-150.0,0.00022,2]
[349780334,1737423052217,-150.0,0.00022,2]
[349780335,1737423052226,-1215.22,0.00022,2]
[349780336,1737423052235,-150.0,0.00022,2]
[349780337,1737423052244,-82205.7616093,0.00022,2]
[349780338,1737423052253,-176.28432287,0.00022,2]
[349780339,1737423052262,-5478.13623304,0.00022,2]
[349780340,1737423052271,-150.0,0.00022,2]
[349780341,1737423052280,-379.0,0.00022,2]
[349780342,1737423052290,-3599.99999908,0.00022,23]
[349780343,1737423052299,-223.0,0.00022,2]
[349780344,1737423052309,-211.0,0.00022,2]
[349780345,1737423052318,-206.0,0.00022,2]
[349780346,1737423052327,-17522.58971931,0.00022,2]
[349780347,1737423052336,-212.0,0.00022,2]
[349780348,1737423052346,-212.0,0.00022,2]
[349780349,1737423052356,-592611.9087233,0.00022,2]
[349780350,1737423052614,-36077.33308819,0.00022,2]
[349780351,1737423052628,-21883.132638,0.00022,2]
[349780352,1737423052643,-2039.86475918,0.00022,2]
[349780353,1737423052662,-1622.88952226,0.00022,2]
[349780354,1737423052674,-6049.7225,0.00022,2]
[349780355,1737423052689,-5339.51808944,0.00022,2]
[349780356,1737423052708,-950.59229995,0.00022,2]
[349780357,1737423052722,-2011.2,0.00022,2]
[349780358,1737423052737,-63273.0289684,0.00022,2]
[349780359,1737423052751,-13379.0558557,0.00022,2]
[349780360,1737423052765,-40119.0,0.00022,2]
[349780361,1737423052781,-201619.99999998,0.00022,2]
[349780362,1737423052807,-500.0,0.00020544,2]
[349780363,1737423052820,-2894.46438005,0.00022,2]
[349780364,1737423052836,-4852.10030709,0.00022,2]
[349780365,1737423052856,-253.2,0.00022,2]
[349780366,1737423053213,-800.24,0.000193,2]
[349780367,1737423053223,-229.30248417,0.00020818,2]
[349780368,1737423053233,-259.47905255,0.00021898,2]
[349780369,1737423053242,-3114.21136401,0.00022,2]
[349780370,1737423053254,-2008.0,0.00022,2]
[349780371,1737423053276,-5010.0,0.00022,2]
[349780372,1737423053288,-2007.4,0.00022,2]
[349780373,1737423053324,-406.86646,0.00019723,2]
[349780374,1737423053336,-104.31287221,0.00019723,2]
[349780375,1737423053346,-500.0,0.00019897,2]
[349780376,1737423053356,-549.21007961,0.00019897,2]
[349780377,1737423053366,-10823.34874318,0.00022,2]
[349780378,1737423054019,-79883.81723359,0.00022,2]
[349780379,1737423054031,-8424.06148506,0.00022,2]
[349780380,1737423054042,-922.10186563,0.00022,2]
[349780381,1737423054054,-308.79880021,0.00022,2]
[349780382,1737423054065,-698.22838578,0.00022,2]
[349780383,1737423054357,-500.0,0.00019722,2]
[349780384,1737423054366,-272.3,0.00019742,2]
[349780385,1737423054376,-500.0,0.00019897,2]
[349780386,1737423054387,-173.97346744,0.00020171,2]
[349780387,1737423054396,-500.0,0.00020171,2]
[349780388,1737423054406,-217.51035321,0.000209,2]
[349780389,1737423054416,-217.51035321,0.000211,2]
[349780390,1737423054424,-217.51035321,0.000213,2]
[349780391,1737423054434,-217.51035321,0.000215,2]
[349780392,1737423054443,-217.51035321,0.000217,3]
[349780393,1737423054454,-16986.89628463,0.00022,2]
[349780394,1737423054466,-303.45599744,0.00022,2]
[349780395,1737423054491,-173.95735684,0.00019996,2]
[349780396,1737423054501,-500.0,0.00020445,2]
[349780397,1737423054510,-1340.53019306,0.00022,2]
[349780398,1737423054522,-94264.42419583,0.00022,2]
[349780399,1737423054713,-435.03864904,0.00019723,2]
[349780400,1737423054790,-106.10900493,0.00019723,2]
[349780401,1737423054800,-508.60894906,0.00019723,2]
[349780402,1737423054810,-1296.62,0.00019897,2]
[349780403,1737423054819,-2891.85964795,0.00020445,2]
[349780404,1737423054828,-500.0,0.00020719,2]
[349780405,1737423054838,-236.82453793,0.00020993,2]
[349780406,1737423054847,-259.47905253,0.00021899,2]
[349780407,1737423054857,-217.51035321,0.000219,3]
[349780408,1737423054866,-7516.23353041,0.00022,2]
[349780409,1737423054886,-1296.62,0.00020171,2]
[349780410,1737423054900,-283.34,0.00022,2]
[349780411,1737423055039,-4353.0179574,0.00022,2]
[349780412,1737423055051,-481.5799984,0.00022,2]
[349780413,1737423055063,-442.76044122,0.00022,2]
[349780414,1737423055075,-1641.53454163,0.00022,2]
[349780415,1737423055460,-229101.2259231,0.00022,2]
[349780416,1737423055472,-303.89190765,0.00022,2]
[349780417,1737423223431,157.47,0.00010137,2]
[349780419,1737423320159,186.36,0.00024,120]
[349780437,1737423835808,1828.4166401,0.00024,90]
[349780439,1737423855408,1800.0,0.00024,120]
[349780443,1737424115667,188.0,0.00010137,2]
[349780450,1737424153093,-188.0,0.00016813,2]
[349780451,1737424153115,-715.37,0.00017032,2]
[349780452,1737424153136,-157.47,0.00017184,2]
[349780453,1737424153157,-3426.952302,0.0001876,2]
[349780468,1737424231875,-1852.057698,0.0001876,2]
[349780470,1737424231884,-1439.67,0.00018785,2]
[349780472,1737424231893,-276.76,0.00018785,2]
[349780474,1737424231903,-301.96,0.00018867,2]
[349780476,1737424231912,-1800.0,0.00019,20]
[349780478,1737424231922,-6497.8551873,0.00019,2]
[349780480,1737424231940,-2614.53042684,0.00019,2]
[349780481,1737424231949,-202.43323446,0.00019009,2]
[349780482,1737424231958,-180.41,0.0001911,2]
[349780483,1737424231967,-208.62633871,0.0001915,2]
[349780484,1737424232066,-10112.87656737,0.0001915,2]
[349780485,1737424232132,-497.65536239,0.0001915,2]
[349780486,1737424232259,-13080.84173153,0.0001915,2]
[349780487,1737424232269,-250.0,0.00019153,2]
[349780488,1737424232279,-250.0,0.00019196,2]
[349780489,1737424232288,-150.0,0.00019288,2]
[349780490,1737424232297,-715.37,0.00019295,2]
[349780491,1737424232307,-158.12,0.00019316,2]
[349780492,1737424232318,-1000.0,0.00019358,2]
[349780493,1737424232328,-681.5862,0.00019424,2]
[349780494,1737424232336,-4995.0989,0.00019424,2]
[349780495,1737424232347,-150.0,0.00019573,2]
[349780496,1737424232355,-303.0,0.00019622,2]
[349780497,1737424232364,-9450.4175,0.00019623,2]
[349780498,1737424232373,-499.722,0.00019722,2]
[349780499,1737424232382,-391.03414277,0.00019723,2]
[349780500,1737424232391,-515.78825106,0.00019723,2]
[349780501,1737424232400,-516.23903111,0.00019723,2]
[349780502,1737424232409,-510.21083567,0.00019723,2]
[349780503,1737424232418,-506.70102249,0.00019723,2]
[349780504,1737424232426,-508.75892146,0.00019723,2]
[349780505,1737424232436,-510.1980913,0.00019723,2]
[349780506,1737424232445,-514.06100938,0.00019723,2]
[349780507,1737424232454,-506.81979507,0.00019723,2]
[349780508,1737424232463,-508.1188297,0.00019723,2]
[349780509,1737424232473,-517.60421557,0.00019723,2]
[349780510,1737424232481,-515.48317263,0.00019723,2]
[349780511,1737424232490,-516.59389097,0.00019723,2]
[349780512,1737424232500,-516.16892051,0.00019723,2]
[349780513,1737424232509,-513.38206706,0.00019723,2]
[349780514,1737424232519,-517.78165706,0.00019723,2]
[349780515,1737424232528,-500.0,0.00019723,2]
[349780516,1737424232538,-230.103897,0.00019723,2]
[349780518,1737424232548,-500.0,0.00019723,2]
[349780520,1737424232557,-539.72568072,0.00019723,2]
[349780522,1737424232566,-500.0,0.00019723,2]
[349780524,1737424232575,-500.0,0.00019723,2]
[349780526,1737424232584,-518.05396217,0.00019723,2]
[349780528,1737424232593,-507.94832649,0.00019723,2]
[349780530,1737424232602,-514.50354277,0.00019723,2]
[349780532,1737424232612,-500.0,0.00019723,2]
[349780534,1737424232621,-500.0,0.00019723,2]
[349780536,1737424232630,-500.0,0.00019723,2]
[349780538,1737424232639,-507.39468433,0.00019723,2]
[349780540,1737424232650,-507.31271327,0.00019723,2]
[349780542,1737424232659,-500.0,0.00019723,2]
[349780544,1737424232668,-535.11603736,0.00019723,2]
[349780546,1737424232677,-510.69255061,0.00019723,2]
[349780551,1737424232855,-523.37600986,0.00019723,2]
[349780552,1737424232864,-512.44539985,0.00019723,2]
[349780553,1737424232873,-515.85870838,0.00019723,2]
[349780554,1737424232882,-500.0,0.00019723,2]
[349780555,1737424232891,-404.57771185,0.00019723,2]
[349780556,1737424232904,-95.42228815,0.00019723,2]
[349780557,1737424232913,-500.0,0.00019723,2]
[349780558,1737424232923,-500.0,0.00019723,2]
[349780559,1737424232932,-531.63458916,0.00019723,2]
[349780560,1737424232942,-522.91424533,0.00019723,2]
[349780561,1737424232950,-502.8271381,0.00019723,2]
[349780562,1737424232959,-523.04789025,0.00019723,2]
[349780563,1737424232968,-509.25990557,0.00019723,2]
[349780564,1737424232977,-500.0,0.00019723,2]
[349780565,1737424232986,-524.78717981,0.00019723,2]
[349780566,1737424232995,-13.41074188,0.00019723,2]
[349780567,1737424233009,-300.0,0.00019723,2]
[349780568,1737424233020,-194.49618961,0.00019723,2]
[349780569,1737424233029,-500.0,0.00019723,2]
[349780570,1737424233039,-621.40064972,0.00019723,2]
[349780571,1737424233049,-500.0,0.00019723,2]
[349780572,1737424233059,-500.0,0.00019723,2]
[349780573,1737424233068,-500.0,0.00019723,2]
[349780574,1737424233078,-509.09999664,0.00019723,2]
[349780575,1737424233087,-525.60457446,0.00019723,2]
[349780576,1737424233097,-511.98032552,0.00019723,2]
[349780577,1737424233106,-500.0,0.00019723,2]
[349780578,1737424233116,-506.93000036,0.00019723,2]
[349780579,1737424233125,-500.0,0.00019723,2]
[349780580,1737424233134,-500.0,0.00019723,2]
[349780581,1737424233144,-513.36710703,0.00019723,2]
[349780582,1737424233153,-518.22507672,0.00019723,2]
[349780583,1737424233162,-521.69407725,0.00019723,2]
[349780584,1737424233172,-500.0,0.00019723,2]
[349780585,1737424233182,-508.10629164,0.00019723,2]
[349780586,1737424233192,-500.0,0.00019723,2]
[349780587,1737424233202,-500.0,0.00019723,2]
[349780588,1737424233212,-516.93130248,0.00019723,2]
[349780589,1737424233222,-500.0,0.00019723,2]
[349780590,1737424233231,-510.21862908,0.00019723,2]
[349780591,1737424233241,-512.2243285,0.00019723,2]
[349780592,1737424233253,-500.0,0.00019723,2]
[349780593,1737424233263,-500.0,0.00019723,2]
[349780594,1737424233277,-500.0,0.00019723,2]
[349780595,1737424233287,-500.0,0.00019723,2]
[349780596,1737424233296,-523.0126514,0.00019723,2]
[349780597,1737424233307,-505.97192552,0.00019723,2]
[349780598,1737424233316,-524.2322221,0.00019723,2]
[349780599,1737424233325,-500.0,0.00019723,2]
[349780600,1737424233333,-527.68056397,0.00019723,2]
[349780601,1737424233343,-500.0,0.00019723,2]
[349780602,1737424233353,-519.76646253,0.00019723,2]
[349780603,1737424233361,-505.53869558,0.00019723,2]
[349780604,1737424233370,-626.71334353,0.00019723,2]
[349780605,1737424233380,-500.0,0.00019723,2]
[349780606,1737424233389,-515.83184728,0.00019723,2]
[349780607,1737424233399,-500.0,0.00019723,2]
[349780608,1737424233410,-500.0,0.00019723,2]
[349780609,1737424233420,-500.0,0.00019723,2]
[349780610,1737424233430,-500.0,0.00019723,2]
[349780611,1737424233440,-500.0,0.00019723,2]
[349780612,1737424233450,-523.77303148,0.00019723,2]
[349780613,1737424233460,-500.0,0.00019723,2]
[349780614,1737424233470,-500.0,0.00019723,2]
[349780615,1737424233479,-500.0,0.00019723,2]
[349780616,1737424233488,-500.0,0.00019723,2]
[349780617,1737424233498,-207.63022035,0.00019723,2]
[349780618,1737424233510,-500.0,0.00019723,2]
[349780619,1737424233521,-502.7489489,0.00019723,2]
[349780620,1737424233531,-507.80569032,0.00019723,2]
[349780621,1737424233541,-523.94864431,0.00019723,2]
[349780622,1737424233551,-506.91065283,0.00019723,2]
[349780623,1737424233561,-500.0,0.00019723,2]
[349780624,1737424233571,-521.26331726,0.00019723,2]
[349780625,1737424233580,-501.45469987,0.00019723,2]
[349780626,1737424233589,-511.02399426,0.00019723,2]
[349780627,1737424233598,-500.0,0.00019723,2]
[349780628,1737424233607,-515.63698826,0.00019723,2]
[349780629,1737424233616,-500.0,0.00019723,2]
[349780630,1737424233625,-512.79683199,0.00019723,2]
[349780631,1737424233634,-500.0,0.00019723,2]
[349780632,1737424233644,-512.86236518,0.00019723,2]
[349780633,1737424233653,-627.7174251,0.00019723,2]
[349780634,1737424233662,-539.68303278,0.00019723,2]
[349780635,1737424233672,-507.90648469,0.00019723,2]
[349780636,1737424233681,-500.0,0.00019723,2]
[349780637,1737424233690,-500.0,0.00019723,2]
[349780638,1737424233700,-517.29758797,0.00019723,2]
[349780639,1737424233710,-250.0,0.00019789,2]
[349780640,1737424233719,-170.4399,0.00019797,2]
[349780641,1737424233729,-185.97,0.00019822,2]
[349780642,1737424233739,-154.0,0.0001989,2]
[349780643,1737424233748,-250.0,0.00019895,2]
[349780644,1737424233759,-5227.5902,0.00019897,2]
[349780645,1737424233768,-4622.8511,0.00019897,2]
[349780646,1737424233777,-1000.0,0.00019897,2]
[349780647,1737424233787,-853.95,0.00019971,30]
[349780648,1737424233797,-4546.0,0.00019997,2]
[349780649,1737424233806,-518.06724969,0.00019997,2]
[349780650,1737424233815,-359.58234945,0.00019997,2]
[349780651,1737424233827,-160.61317747,0.00019997,2]
[349780652,1737424233837,-500.0,0.00019997,2]
[349780653,1737424233847,-631.01739739,0.00019997,2]
[349780654,1737424233856,-521.03323713,0.00019997,2]
[349780655,1737424233865,-522.96873674,0.00019997,2]
[349780656,1737424233875,-520.45986837,0.00019997,2]
[349780657,1737424233885,-524.43429056,0.00019997,2]
[349780658,1737424233895,-508.22374713,0.00019997,2]
[349780659,1737424233905,-543.72083096,0.00019997,2]
[349780660,1737424233914,-526.55343196,0.00019997,2]
[349780661,1737424233924,-532.2668623,0.00019997,2]
[349780662,1737424233933,-516.79206882,0.00019997,2]
[349780663,1737424233943,-171.21512633,0.00019997,2]
[349780664,1737424233953,-515.08856061,0.00019997,2]
[349780665,1737424233963,-533.34259026,0.00019997,2]
[349780666,1737424233973,-291.15413197,0.00019997,2]
[349780667,1737424233983,-516.81115305,0.00019997,2]
[349780668,1737424233993,-533.86163843,0.00019997,2]
[349780669,1737424234005,-515.73344942,0.00019997,2]
[349780670,1737424234015,-500.0,0.00019997,2]
[349780671,1737424234024,-515.57979137,0.00019997,2]
[349780672,1737424234034,-510.24110207,0.00019997,2]
[349780673,1737424234043,-255.2348269,0.00019997,2]
[349780674,1737424234063,-244.7651731,0.00019997,2]
[349780675,1737424234072,-539.31805259,0.00019997,2]
[349780676,1737424234081,-519.24416161,0.00019997,2]
[349780677,1737424234091,-516.42115681,0.00019997,2]
[349780678,1737424234100,-521.90332223,0.00019997,2]
[349780679,1737424234110,-500.0,0.00019997,2]
[349780680,1737424234119,-500.0,0.00019997,2]
[349780681,1737424234129,-504.52013155,0.00019997,2]
[349780682,1737424234138,-500.0,0.00019997,2]
[349780683,1737424234148,-500.0,0.00019997,2]
[349780684,1737424234157,-500.0,0.00019997,2]
[349780685,1737424234167,-504.59398746,0.00019997,2]
[349780686,1737424234178,-505.85042708,0.00019997,2]
[349780687,1737424234187,-511.94079772,0.00019997,2]
[349780688,1737424234197,-500.0,0.00019997,2]
[349780689,1737424234207,-507.62726603,0.00019997,2]
[349780690,1737424234217,-506.48750505,0.00019997,2]
[349780691,1737424234226,-514.12263882,0.00019997,2]
[349780692,1737424234236,-500.0,0.00019997,2]
[349780693,1737424234245,-527.13621151,0.00019997,2]
[349780694,1737424234259,-6.61906262,0.00019997,2]
[349780699,1737424237823,-493.38093738,0.00019997,2]
[349780700,1737424237835,-520.56335264,0.00019997,2]
[349780701,1737424237845,-500.0,0.00019997,2]
[349780702,1737424237856,-522.59256753,0.00019997,2]
[349780703,1737424237867,-1800.0,0.0002,21]
[349780704,1737424237878,-519.43804642,0.0002027,2]
[349780705,1737424237888,-303.04185885,0.0002027,2]
[349780706,1737424237899,-512.65184364,0.0002027,2]
[349780707,1737424237911,-334.73967401,0.0002027,2]
[349780708,1737424237922,-464.52965223,0.0002027,2]
[349780709,1737424237933,-503.9308524,0.0002027,2]
[349780710,1737424237945,-510.45565158,0.0002027,2]
[349780711,1737424237956,-519.61685561,0.0002027,2]
[349780712,1737424237967,-510.48149637,0.0002027,2]
[349780713,1737424237977,-523.4173483,0.0002027,2]
[349780714,1737424237988,-540.04735556,0.0002027,2]
[349780715,1737424237999,-504.87967714,0.0002027,2]
[349780716,1737424238012,-504.09246502,0.0002027,2]
[349780717,1737424238023,-514.09978083,0.0002027,2]
[349780718,1737424238033,-627.87259304,0.0002027,2]
[349780719,1737424238044,-508.30711593,0.0002027,2]
[349780720,1737424238055,-507.23074522,0.0002027,2]
[349780721,1737424238067,-520.18016979,0.0002027,2]
[349780722,1737424238077,-375.90372058,0.0002027,2]
[349780723,1737424238110,-137.20684238,0.0002027,2]
[349780724,1737424238121,-503.67918055,0.0002027,2]
[349780725,1737424238132,-510.0668394,0.0002027,2]
[349780726,1737424238143,-508.66970457,0.0002027,2]
[349780727,1737424238154,-504.4651196,0.0002027,2]
[349780728,1737424238165,-508.80286704,0.0002027,2]
[349780729,1737424238176,-376.96104646,0.0002027,2]
[349780731,1737424238188,-134.72256901,0.0002027,2]
[349780733,1737424238199,-507.87231666,0.0002027,2]
[349780735,1737424238210,-509.02929634,0.0002027,2]
[349780737,1737424238220,-504.5979069,0.0002027,2]
[349780739,1737424238231,-505.8313873,0.0002027,2]
[349780742,1737424238242,-510.06677776,0.0002027,2]
[349780744,1737424238253,-506.07451776,0.0002027,2]
[349780746,1737424238264,-513.74144362,0.0002027,2]
[349780748,1737424238278,-508.68190567,0.0002027,2]
[349780750,1737424238288,-515.01553143,0.0002027,2]
[349780752,1737424238298,-429.386752,0.0002027,2]
[349780754,1737424238310,-500.0,0.0002027,2]
[349780756,1737424238321,-527.90580181,0.0002027,2]
[349780758,1737424238332,-160.689842,0.0002027,2]
[349780760,1737424238342,-606.77,0.0002027,2]
[349780762,1737424238353,-500.0,0.0002027,2]
[349780764,1737424238364,-500.0,0.0002027,2]
[349780765,1737424238375,-500.0,0.0002027,2]
[349780768,1737424238385,-500.0,0.0002027,2]
[349780771,1737424238395,-515.845689,0.0002027,2]
[349780774,1737424238406,-231.810786,0.0002027,2]
[349780776,1737424238416,-500.0,0.0002027,2]
[349780778,1737424238427,-906.4,0.0002027,2]
[349780780,1737424238437,-718.48,0.0002027,2]
[349780782,1737424238447,-500.0,0.0002027,2]
[349780784,1737424238457,-500.0,0.0002027,2]
[349780786,1737424238467,-531.69151718,0.0002027,2]
[349780788,1737424238478,-500.0,0.0002027,2]
[349780790,1737424238489,-636.12,0.0002027,2]
[349780792,1737424238499,-643.95,0.0002027,2]
[349780794,1737424238512,-77.81595956,0.0002027,2]
[349780797,1737424238532,-422.18404044,0.0002027,2]
[349780799,1737424238542,-877.29,0.0002027,2]
[349780802,1737424238553,-500.0,0.0002027,2]
[349780804,1737424238564,-500.0,0.0002027,2]
[349780806,1737424238575,-500.0,0.0002027,2]
[349780808,1737424238587,-678.62,0.0002027,2]
[349780810,1737424238598,-513.75463723,0.0002027,2]
[349780812,1737424238608,-211.37455229,0.0002027,2]
[349780815,1737424238622,-288.62544771,0.0002027,2]
[349780817,1737424238632,-153.58386658,0.0002027,2]
[349780820,1737424238655,-346.41613342,0.0002027,2]
[349780822,1737424238664,-515.96,0.0002027,2]